Cogmind - Beta 13 @@@ ROGUE MODE // 2024.05.14 @ 13:23:18 Player: Wyvric Result: Self-destructed Performance ------------- Evolutions (2) 1000 Regions Visited (3) 600 Robots Destroyed (21) 105 Value Destroyed (537) 537 Prototype IDs (0) 0 Alien Tech Used (0) 0 Bonus (0) 0 TOTAL SCORE: 2242 Bonus ------- None Cogmind --------- Core Integrity 550/550 Matter 260/300 Energy 200/200 System Corruption 0% Temperature Cool (0) Movement Treading (160) Location -8/Materials Parts ------- > --- POWER (1) -------- Subdweller Power Source > --- PROPULSION (4) --- Light Treads Light Treads > --- UTILITY (4) ------ Large Storage Unit Light Armor Plating > --- WEAPON (2) ------- Autogun Autogun > --- INVENTORY (15) --- Subdweller Power Source Light Treads Light Treads Subdweller Monowheel Subdweller Monowheel Subdweller Monowheel Subdweller Optics Signal Interpreter Riot Gun Subdweller Laser Heavy Assault Rifle Heavy Assault Rifle Heavy Assault Rifle Heavy Assault Rifle Subdweller Machine Gun Peak State ------------ > --- POWER ------------ Subdweller Power Source > --- PROPULSION ------- Subdweller Monowheel Subdweller Monowheel > --- UTILITY ---------- Large Storage Unit Light Armor Plating > --- WEAPON ----------- Autogun Autogun > --- INVENTORY -------- Subdweller Power Source Light Treads Light Treads Light Treads Light Treads Light Treads Subdweller Optics Signal Interpreter Riot Gun Subdweller Laser Heavy Assault Rifle Heavy Assault Rifle Heavy Assault Rifle Heavy Assault Rifle Subdweller Machine Gun [Rating: 14] Favorites ----------- Power Ion Engine Engine Ion Engine Propulsion Light Treads Treads Light Treads Leg Aluminum Leg Wheel Subdweller Monowheel Utility Large Storage Unit Storage Large Storage Unit Processor Targeting Computer Protection Light Armor Plating Weapon Autogun Energy Gun EM Pulse Gun Ballistic Gun Autogun Build | -11 -10 -10 -8 ------- Run | Yrd Mat Sub Mat Slots Evolved 4 | . . . 4 Power . | . . . . Propulsion 2 | . . . 2 Utility 2 | . . . 2 Weapon . | . . . . Parts Attached 31 | 8 9 14 . Power 5 | 1 . 4 . Engine 5 | 1 . 4 . Core . | . . . . Reactor . | . . . . Propulsion 11 | 4 1 6 . Treads 6 | 2 1 3 . Leg 2 | 2 . . . Wheel 3 | . . 3 . Hover . | . . . . Flight . | . . . . Utility 5 | 1 3 1 . Device . | . . . . Storage 3 | 1 2 . . Processor 1 | . 1 . . Hackware . | . . . . Protection 1 | . . 1 . Artifact . | . . . . Weapon 10 | 2 5 3 . Energy Gun 1 | 1 . . . Energy Cannon . | . . . . Ballistic Gun 9 | 1 5 3 . Ballistic Cannon . | . . . . Launcher . | . . . . Special Weapon . | . . . . Impact Weapon . | . . . . Slashing Weapon . | . . . . Piercing Weapon . | . . . . Special Melee Weapon . | . . . . Unidentified Prototypes . | . . . . Parts Lost 4 | . . 4 . Power 1 | . . 1 . Propulsion 1 | . . 1 . Utility . | . . . . Weapon 2 | . . 2 . Highest Loss Streak 2 | . . 2 . To Critical Strikes . | . . . . Average Slot Usage (%) 98 | . 98 98 . Engine 13 | . 14 12 . Treads 22 | . 28 18 . Wheel 5 | . . 9 . Storage 14 | . 14 14 . Processor 10 | . 12 7 . Protection 3 | . . 6 . Ballistic Gun 27 | . 27 28 . Naked Turns . | . . . . Heaviest Build 34 | 13 31 34 . Greatest Support 40 | 40 40 40 . Greatest Overweight (x) . | . . . . Average Overweight (x) . | . . . . Largest Inventory Capacity 15 | 8 15 15 . Average Capacity 13 | 6 12 15 . Most Carried 15 | 6 14 15 . Average Carried 12 | 4 11 14 . Final Capacity 15 | 8 15 15 15 Final Carried 15 | 4 14 15 15 Class Distribution -------------------- 84% | Mutant 15% | Scavenger-Mutant Dominant Class ---------------- Mutant | -10/Materials Mutant | -10/Subcaves Mutant | -8/Materials Resources | -11 -10 -10 -8 ----------- Run | Yrd Mat Sub Mat Matter Collected 975 | 242 397 336 . Remotely . | . . . . Salvage Created 726 | . 406 320 . Parts 54 | . 27 27 . Haulers Intercepted 1 | . 1 . . Recyclers Shooed . | . . . . Parts Field Recycled . | . . . . Retrieved Matter . | . . . . Parts Self-Destructed 17 | . . 17 . Prevented . | . . . . Kills | -11 -10 -10 -8 ------- Run | Yrd Mat Sub Mat Combat Hostiles Destroyed 18 | . 10 8 . Guns 18 | . 10 8 . Classes Destroyed 6 | . 4 2 . Hauler 1 | . 1 . . Watcher 2 | . 2 . . Swarmer 6 | . 3 3 . Grunt 7 | . 7 . . Sentry 1 | . . 1 . Subdweller 4 | . . 4 . Best Kill Streak 4 | . 4 3 . Combat Bots Only 4 | . 4 3 . Max Kills in Single Turn 1 | . 1 1 . Gunslinging . | . . . . Exploded . | . . . . Melee . | . . . . Uniques/NPCs Destroyed . | . . . . Combat | -11 -10 -10 -8 -------- Run | Yrd Mat Sub Mat Hostile Shots Fired 85 | . 38 47 . Missed 23 | . 12 11 . Damage Taken 1015 | . 274 741 . Core 160 | . 41 119 . Absorbed by Shields . | . . . . Regen/Repaired (Parts) 47 | . 47 . . Core Remaining (%) 68 | 100 . 36 . Volleys Fired 69 | . 34 35 . Largest 2 | . 2 2 . Hottest 53 | . 46 53 . Shots Fired 137 | . 68 69 . Gun 137 | . 68 69 . Cannon . | . . . . Launcher . | . . . . Special . | . . . . Kinetic 137 | . 68 69 . Thermal . | . . . . Explosive . | . . . . Electromagnetic . | . . . . Robot Hit Streak 26 | . 10 26 . Robot Miss Streak 3 | . 3 3 . Penetration Max . | . . . . Secondary Targets 3 | . . 3 . Max Gunslinging Chain 1 | . . 1 . Shots Hit Robots 100 | . 44 56 . Core Hits 31 | . 17 14 . Critical Kills 1 | . 1 . . Critical Parts Destroyed . | . . . . Critical Strikes 1 | . 1 . . Destroy 1 | . 1 . . Melee Attacks . | . . . . Impact . | . . . . Slashing . | . . . . Piercing . | . . . . Sneak Attacks . | . . . . Combat Hostiles . | . . . . Follow-up Attacks . | . . . . Damage Inflicted 1544 | . 650 894 . Guns 1544 | . 650 894 . Cannons . | . . . . Explosions . | . . . . Melee . | . . . . Ramming . | . . . . Kinetic 1544 | . 650 894 . Thermal . | . . . . Explosive . | . . . . Electromagnetic . | . . . . Impact . | . . . . Slashing . | . . . . Piercing . | . . . . Highest Corruption . | . . . . Average Corruption . | . . . . Corruption Purged . | . . . . Corruption Blocked . | . . . . Overload Shots . | . . . . Overflow Damage . | . . . . Projectiles . | . . . . Explosions . | . . . . Melee . | . . . . Knockbacks . | . . . . Impact . | . . . . Kinetic . | . . . . Secondary . | . . . . Self-Inflicted Damage . | . . . . Shots . | . . . . Rammed 1 | . 1 . . Targets Rammed 1 | . 1 . . Kicked . | . . . . Crushed . | . . . . Highest Temperature 30 | . 30 . . Average Temperature 9 | . 9 . . Received Heat Transfer 288 | . 132 156 . Siege Activations . | . . . . Robots Corrupted . | . . . . Combat Hostiles . | . . . . Parts Fried . | . . . . Impact Corruptions . | . . . . Robots Melted . | . . . . Combat Hostiles . | . . . . Parts Melted . | . . . . Heat Transferred . | . . . . Parts Sabotaged . | . . . . Parts Stolen . | . . . . Parts Stripped . | . . . . Power Chain Reactions . | . . . . Alert | -11 -10 -10 -8 ------- Run | Yrd Mat Sub Mat Peak Influence 127 | . 127 . . Initial . | . . . . Average 43 | . 46 . . Maximum Alert Level . | . . . . Low Security (%) 100 | 100 100 . . Level 1 . | . . . . Level 2 . | . . . . Level 3 . | . . . . Level 4 . | . . . . Level 5 . | . . . . High Security . | . . . . Max Security . | . . . . Squads Dispatched 4 | . 4 . . Investigation 4 | . 4 . . Extermination . | . . . . Reinforcement . | . . . . Assault . | . . . . Garrison . | . . . . Intercept . | . . . . Searches Triggered . | . . . . Construction Impeded . | . . . . Haulers Reinforced . | . . . . Active Scanning Responses . | . . . . Cargo Convoy Interrupts . | . . . . Stealth | -11 -10 -10 -8 --------- Run | Yrd Mat Sub Mat Distress Signals 1 | . 1 . . Communications Jammed . | . . . . Distress Signals . | . . . . Times Spotted 24 | . 13 11 . Peak Tracking Total 4 | . 4 2 . Tactical Retreats 1 | . . 1 . Traps | -11 -10 -10 -8 ------- Run | Yrd Mat Sub Mat Traps Triggered 4 | . 2 2 . Indirectly . | . . . . Trap Hack Attempts . | . . . . Triggered . | . . . . Disarmed . | . . . . Reprogrammed . | . . . . Reused . | . . . . Traps Extracted . | . . . . Installed . | . . . . Triggered . | . . . . Machines | -11 -10 -10 -8 ---------- Run | Yrd Mat Sub Mat Machines Disabled . | . . . . Max in Single Turn . | . . . . Machines Repaired . | . . . . Machines Dismantled . | . . . . Machines Sabotaged . | . . . . Overloaded Fab Kills . | . . . . Hacking | -11 -10 -10 -8 --------- Run | Yrd Mat Sub Mat Machines Accessed 9 | . 9 . . Terminals 7 | . 7 . . Fabricators . | . . . . Repair Stations 1 | . 1 . . Recycling Units 1 | . 1 . . Scanalyzers . | . . . . Garrison Access . | . . . . Total Hacks 27 | . 27 . . Successful 8 | . 8 . . Failed 18 | . 18 . . Catastrophic . | . . . . Database Lockouts 1 | . 1 . . Manual 21 | . 21 . . Terminals 20 | . 20 . . Fabricators . | . . . . Repair Stations 4 | . 4 . . Recycling Units 3 | . 3 . . Scanalyzers . | . . . . Garrison Access . | . . . . Terminal Hacks 6 | . 6 . . Robot Analysis 6 | . 6 . . Fabricator Hacks . | . . . . Repair Station Hacks 2 | . 2 . . Scan Component 1 | . 1 . . Repair 1 | . 1 . . Recycling Unit Hacks . | . . . . Scanalyzer . | . . . . Garrison Access Hacks . | . . . . Unauthorized Hacks . | . . . . Terminals . | . . . . Fabricators . | . . . . Repair Stations . | . . . . Recycling Units . | . . . . Scanalyzers . | . . . . Garrison Access . | . . . . Data Cores Recovered . | . . . . Used . | . . . . Hacking Detections 9 | . 9 . . Full Trace Events 2 | . 2 . . Feedback Events . | . . . . Feedback Blocked . | . . . . Robot Schematics Acquired . | . . . . Robots Built . | . . . . Authchips . | . . . . Time . | . . . . Total Robot Build Rating . | . . . . Part Schematics Acquired . | . . . . Parts Built . | . . . . Authchips . | . . . . Time . | . . . . Total Part Build Rating . | . . . . Parts Repaired 1 | . 1 . . Time 32 | . 32 . . Parts Recycled . | . . . . Recycled Matter . | . . . . Retrieved Matter . | . . . . Retrieved Components . | . . . . Parts Scanalyzed . | . . . . Part Schematics Acquired . | . . . . Parts Damaged . | . . . . Bothacking | -11 -10 -10 -8 ------------ Run | Yrd Mat Sub Mat Used RIF Installer . | . . . . Robots Hacked . | . . . . Non-combat . | . . . . Combat . | . . . . Robot Hacks Applied . | . . . . Relay Couplers Released . | . . . . Fabnet Peak Effective % . | . . . . Robots Rewired . | . . . . Allies Hacked . | . . . . Hacks Repelled . | . . . . Allies | -11 -10 -10 -8 -------- Run | Yrd Mat Sub Mat Total Allies . | . . . . Largest Group . | . . . . Highest-Rated Group . | . . . . Highest-Rated Ally . | . . . . Total Orders . | . . . . Ally Attacks . | . . . . Total Damage . | . . . . Kills . | . . . . Allies Corrupted . | . . . . Allies Melted . | . . . . Intel | -11 -10 -10 -8 ------- Run | Yrd Mat Sub Mat Robot Analysis Total 6 | . 6 . . Derelict Logs Recovered 1 | . . 1 . Drone Launches . | . . . . Drone Recoveries . | . . . . Exploration | -11 -10 -10 -8 ------------- Run | Yrd Mat Sub Mat Turns Passed 2555 | 81 1194 1280 . Spaces Moved 1493 | 60 645 788 . Core 13 | 13 . . . Treads 1051 | 3 645 403 . Legs 44 | 44 . . . Wheels 385 | . . 385 . Hover . | . . . . Flight . | . . . . Fastest Speed 50 | 50 160 110 . Average Speed 144 | 106 160 135 . Slowest Speed 160 | 160 160 160 . Overloaded Moves . | . . . . Propulsion Burnouts . | . . . . Robots Hopped . | . . . . Cave-ins Triggered . | . . . . Exploration Rate (%) 35 | 4 93 43 1 Regions Visited 3 Branch Regions 1 Pre-discovered Areas 2 | . . 2 . Known Exits Taken . | . . . . Unknown Exits Taken 3 | 1 1 1 . Scrap Searched 1 | . . 1 . Spaces Dug . | . . . . Terrain Destroyed . | . . . . Melee . | . . . . Projectile . | . . . . AOE . | . . . . Terrain Rammed . | . . . . Walls Destroyed . | . . . . Machines Disabled . | . . . . Actions | -11 -10 -10 -8 --------- Run | Yrd Mat Sub Mat Total 1768 | 75 756 937 . Wait 123 | . 39 84 . Move 1490 | 59 644 787 . Hop . | . . . . Pick Up 34 | 6 18 10 . Fast Attach 9 | 6 1 2 . Attach 7 | 2 2 3 . Detach . | . . . . Swap 15 | . 6 9 . Drop 20 | 2 11 7 . Fire 69 | . 34 35 . Melee . | . . . . Ram . | . . . . Kick . | . . . . Crush 1 | . 1 . . Escape Stasis . | . . . . Rewire . | . . . . Trap . | . . . . Miscellaneous . | . . . . Route ------- -11/Scrapyard -10/Materials (discovered 5 exits: [*Mat x3] / [*Min] / [*Sub]) -10/Subcaves (discovered 2 exits: [*Mat x2]) -8/Materials History --------- Turn | Location | Event 10 | -11/Scrapyard | Discovered new exit (range 16) 82 | -11/Scrapyard | Entered Materials 268 | -10/Materials | Discovered new exit (range 14) 317 | -10/Materials | Build established: Mutant 411 | -10/Materials | Discovered new exit (range 15) 582 | -10/Materials | Derelicts attacked the area 688 | -10/Materials | Discovered new exit (range 11) 867 | -10/Materials | Discovered new exit (range 11) 1000 | -10/Materials | Discovered new exit (range 8) 1006 | -10/Materials | Central database locked down 1120 | -10/Materials | Repaired Autogun 1276 | -10/Materials | Entered Subcaves 1372 | -10/Subcaves | Shifting Twisted Machinery released Sub. Optics 1382 | -10/Subcaves | Shifting Twisted Machinery released Riot Gun 1430 | -10/Subcaves | Learned location of Zion (-7) 1430 | -10/Subcaves | Met a Zionite searching for "candidates" 1450 | -10/Subcaves | Discovered new exit (range 5) 1529 | -10/Subcaves | Learned location of Recycling (-9) 2018 | -10/Subcaves | Core integrity fell below 50% 2096 | -10/Subcaves | A swath of the cavern ceiling suddenly collapsed 2142 | -10/Subcaves | Ambushed by Subdwellers from Twisted Machinery 2321 | -10/Subcaves | Build established: Scavenger-Mutant 2380 | -10/Subcaves | Discovered new exit (range 8) 2556 | -10/Subcaves | Entered Materials 2556 | -8/Materials | Evolved 4 slots: Propulsion x2, Utility x2 2556 | -8/Materials | Self-destructed Last Messages --------------- 02482_ H6-68U(u) deconstructs Twisted Machinery. 02483_ S9-797(u) builds Twisted Machinery. 02484_ H6-68U(u) deconstructs Twisted Machinery. 02485_ S9-797(u) builds Twisted Machinery. 02486_ H6-68U(u) deconstructs Twisted Machinery. 02487_ S9-797(u) builds Twisted Machinery. 02488_ H6-68U(u) deconstructs Twisted Machinery. 02489_ S9-797(u) builds Twisted Machinery. 02490_ H6-68U(u) deconstructs Twisted Machinery. 02491_ S9-797(u) builds Twisted Machinery. 02492_ H6-68U(u) deconstructs Twisted Machinery. 02493_ S9-797(u) builds Twisted Machinery. 02494_ H6-68U(u) deconstructs Twisted Machinery. 02495_ S9-797(u) builds Twisted Machinery. 02496_ H6-68U(u) deconstructs Twisted Machinery. 02528_ Sub. Monowheel shoots sparks and powers down. PARAMETERS=PROPULSION+2,UTILITY+2 LOCATION=UNKNOWN GOAL=ESCAPE Map ----- +----------------------------------------------------+ | ?????????????????????????????????????????????? | | ?????????????????????????????????????????????? | | ?????????????????????????????????????????????? | | ?????????????????????????????????????????????? | | ?????????????????????????????????????????????? | | ?????????????????????????????????????????????? | | ?????????????????????????????????????????????? | | ?????????????????????????????????????????????? | | ?????????????????????????????????????????????? | | ?????????????????????????????????????????????? | | ?????????????????????????????????????????????? | | ?????????????????????????????????????????????? | | ?????????????????????????????????????????????? | | ?????????????????????????????????????????????? | | ?????????????????????????????????????????????? | | ?????????????????????????????????????????????? | | ?????????????????????????????????????????????? | | ?????????????????????????????????????????????? | | ?????????????????????????????????????????????? | | ?????????????????????????????????????????????? | | ?????????????????????????????????????????????? | | ?????????????????????????????????????????????? | | ??????????????###????????????????????????????? | | ?????????????## *########?????????????????? | | ?????????? #?????????????????? | | ?????????? * @ #?????????????????? | | ?????????? #?????????????????? | | ?????????????## ########?????????????????? | | ??????????????###????????????????????????????? | | ?????????????????????????????????????????????? | | ?????????????????????????????????????????????? | | ?????????????????????????????????????????????? | | ?????????????????????????????????????????????? | | ?????????????????????????????????????????????? | | ?????????????????????????????????????????????? | | | | | | | | | | | | | | | | | | | | | | | | | | | | | | | +----------------------------------------------------+ Best States ------------- Heat Dissipation 25 Energy Generation 15 Energy Capacity 250 Matter Stores 300 Matter Capacity 300 Sight Range 16 Terrain Scan Density 10 Armor Coverage 150 Evasion (%) 50 Targeting Accuracy 5 Recoil Reduction 2 Item Schematics ----------------- None Robot Schematics ------------------ None Fabricated ------------ Nothing Alien Tech Used ----------------- None Achievements -------------- None Challenges ------------ None Game ------ Seed BiometalLinearFilter Manual? 0 Play Time 00:15:06 Cumulative 388.3 hours Start 2024.05.14 @ 13:07:00 End 2024.05.14 @ 13:23:18 Sessions 1 Manual Loads 0 Difficulty Rogue Special Mode None Game No. 102 Rogue 102 Adventurer 0 Explorer 0 Win Type - Total 20 Types 8/3/6/1/1/0/1/0/0 Lore% 61 Gallery% 84 Achievement% 72 Wizard Run 0 Options --------- Layout 1 ASCII 0 Keyboard 0 Movement Mouse Keybinds 0 Fullscreen 1 Font 24/Smallcaps Map View 50x35 Zoom Use 3% Tactical HUD 1 Map Filters NONE Filters NONE Steam 1 RUN: ade4c7f3-3d7e-4d34-8d1f-16f4aab82f32